Cogmind - Beta 14 @@@ ROGUE MODE // 2025.01.13 @ 14:00:46 Player: Monday Result: Destroyed by S-27 Virus with Autogun Performance ------------- Evolutions (3) 1500 Regions Visited (6) 1200 Robots Destroyed (32) 160 Value Destroyed (655) 655 Prototype IDs (2) 40 Alien Tech Used (0) 0 Bonus (32) 32 TOTAL SCORE: 3587 Bonus ------- High Alert Combat Kills 11 Follower Combat Kills 21 Cogmind --------- Core Integrity 0/700 Matter 264/300 Energy 100/100 System Corruption 0% Temperature Cool (0) Movement Core (50) Location -7/Factory Parts ------- > --- POWER (1) -------- (None) > --- PROPULSION (4) --- (None) > --- UTILITY (6) ------ (None) > --- WEAPON (2) ------- (None) > --- INVENTORY (5) ---- Light Deuterium Engine Improved Aluminum Leg Small Storage Unit Assault Cannon Peak State ------------ > --- POWER ------------ Light Nuclear Core > --- PROPULSION ------- Flight Unit Flight Unit Improved Flight Unit Improved Flight Unit > --- UTILITY ---------- Machine Analyzer Experimental Sensor Array Terrain Scanner Propulsion Shielding > --- WEAPON ----------- Assault Cannon Rocket Launcher > --- INVENTORY -------- Small Storage Unit Flail [Rating: 30] Favorites ----------- Power Light Nuclear Core Engine Light Ion Engine Power Core Light Nuclear Core Propulsion Improved Flight Unit Leg Aluminum Leg Flight Unit Improved Flight Unit Utility Terrain Scanner Device Terrain Scanner Storage Small Storage Unit Processor Machine Analyzer Hackware Hacking Suite Protection Propulsion Shielding Weapon Assault Cannon Energy Gun EM Pulse Gun Energy Cannon Light EM Pulse Cannon Ballistic Gun Assault Rifle Ballistic Cannon Assault Cannon Launcher Rocket Launcher Special Weapon Plasma Cutter Impact Weapon Flail Special Melee Weapon Improved Datajack Build | -11 -10 -10 -9 -9 -8 -7 ------- Run | Yrd Mat Min Mat Min Mat Fac Slots Evolved 6 | . . . 2 . 2 2 Power . | . . . . . . . Propulsion 2 | . . . 2 . . . Utility 4 | . . . . . 2 2 Weapon . | . . . . . . . Parts Attached 51 | 7 9 1 13 5 11 5 Power 7 | 1 . . 1 1 2 2 Engine 4 | 1 . . . . 1 2 Core 3 | . . . 1 1 1 . Reactor . | . . . . . . . Propulsion 11 | 2 2 . 2 2 3 . Treads . | . . . . . . . Leg 2 | 2 . . . . . . Wheel . | . . . . . . . Hover . | . . . . . . . Flight 9 | . 2 . 2 2 3 . Utility 16 | 1 3 . 4 1 5 2 Device 6 | . 2 . . 1 2 1 Storage 4 | 1 1 . 1 . 1 . Processor 2 | . . . 1 . . 1 Hackware 1 | . . . . . 1 . Protection 3 | . . . 2 . 1 . Artifact . | . . . . . . . Weapon 17 | 3 4 1 6 1 1 1 Energy Gun 3 | 2 1 . . . . . Energy Cannon 3 | . 2 . 1 . . . Ballistic Gun 1 | 1 . . . . . . Ballistic Cannon 1 | . . . 1 . . . Launcher 3 | . 1 1 . 1 . . Special Weapon 2 | . . . 2 . . . Impact Weapon 3 | . . . 1 . 1 1 Slashing Weapon . | . . . . . . . Piercing Weapon . | . . . . . . . Special Melee Weapon 1 | . . . 1 . . . Unidentified Prototypes 2 | . 1 . . 1 . . Parts Lost 12 | . . . 2 1 7 2 Power 2 | . . . . 1 1 . Propulsion 5 | . . . 1 . 4 . Utility 3 | . . . . . 1 2 Weapon 2 | . . . 1 . 1 . Highest Loss Streak 6 | . . . 2 1 6 2 To Critical Strikes . | . . . . . . . Average Slot Usage (%) 73 | . 75 85 87 92 91 25 Engine 4 | . 14 14 2 . . . Core 3 | . . . 8 4 8 . Flight 26 | . 24 28 37 44 33 . Device 13 | . 15 28 13 8 12 9 Processor 5 | . . . 1 11 9 9 Hackware 2 | . . . . . 5 5 Protection 3 | . . . 4 2 8 . Energy Cannon 1 | . 10 . . . . . Ballistic Cannon 3 | . . . 1 11 8 . Launcher 3 | . 1 14 4 10 . . Impact Weapon 2 | . . . 5 . 5 . Peak Build Rating 30 | 6 12 12 22 28 30 21 Average Rating 17 | 4 10 11 18 24 26 14 On Entrance 13 | . 6 11 12 21 28 16 Naked Turns 37 | . . . . . . 37 Heaviest Build 17 | 12 12 9 16 15 17 2 Greatest Support 20 | 20 20 10 20 19 18 3 Greatest Overweight (x) 3 | . 3 . . . 1 . Average Overweight (x) . | . . . . . . . Largest Inventory Capacity 8 | 8 8 5 8 5 8 5 Average Capacity 5 | 6 5 5 5 5 5 5 Most Carried 5 | 5 5 5 5 5 5 5 Average Carried 4 | 3 4 5 4 4 3 4 Final Capacity 8 | 8 5 5 5 5 5 5 Final Carried 5 | 4 5 5 5 4 5 4 Class Distribution -------------------- 50% | Mutant 19% | Sprinter 14% | Scout 11% | Scavenger-Sprinter 3% | Scavenger-Scout Dominant Class ---------------- Mutant | -10/Materials Mutant | -10/Mines Mutant | -9/Materials Sprinter | -9/Mines Scavenger-Sprinter | -8/Materials Scout | -7/Factory Resources | -11 -10 -10 -9 -9 -8 -7 ----------- Run | Yrd Mat Min Mat Min Mat Fac Matter Collected 1071 | 270 . 184 246 117 254 . Remotely . | . . . . . . . Salvage Created 605 | 58 74 202 232 37 2 . Parts 38 | 1 5 11 13 6 2 . Haulers Intercepted 1 | . . . 1 . . . Recyclers Shooed . | . . . . . . . Parts Field Recycled . | . . . . . . . Retrieved Matter . | . . . . . . . Parts Self-Destructed . | . . . . . . . Prevented . | . . . . . . . Kills | -11 -10 -10 -9 -9 -8 -7 ------- Run | Yrd Mat Min Mat Min Mat Fac Combat Hostiles Destroyed 25 | . 6 4 8 7 . . Cannons 6 | . 3 . 3 . . . AOE 18 | . 3 4 4 7 . . Classes Destroyed 7 | 1 1 4 1 . . . Worker 3 | . . 2 . . 1 . Builder 1 | . . 1 . . . . Hauler 1 | . . . 1 . . . Recycler 2 | 1 . 1 . . . . Swarmer 15 | . 6 . 2 7 . . Grunt 6 | . . 2 4 . . . Sentry 4 | . . 2 2 . . . Best Kill Streak 8 | 1 3 8 4 4 1 . Combat Bots Only 4 | . 3 4 3 4 . . Max Kills in Single Turn 3 | 1 2 2 1 3 1 . Gunslinging . | . . . . . . . Exploded 3 | . 2 1 1 3 . . Melee . | . . . . . . . Uniques/NPCs Destroyed . | . . . . . . . Combat | -11 -10 -10 -9 -9 -8 -7 -------- Run | Yrd Mat Min Mat Min Mat Fac Hostile Shots Fired 249 | . 14 15 88 19 34 79 Missed 91 | . 6 9 23 9 13 31 Damage Taken 2068 | . 58 87 713 125 361 724 Core 1231 | . 8 44 278 22 177 702 Absorbed by Shields . | . . . . . . . Redirected to Shielding 51 | . . . 10 . 41 . Core Remaining (%) 67 | 100 . 79 . 25 67 . Volleys Fired 68 | 4 8 12 37 6 1 . Largest 2 | 2 1 1 1 1 1 . Hottest 80 | 80 56 33 56 33 44 . Shots Fired 72 | 8 8 12 37 6 1 . Gun 8 | 8 . . . . . . Cannon 26 | . 6 . 19 . 1 . Launcher 33 | . 2 12 13 6 . . Special 5 | . . . 5 . . . Kinetic 14 | . . . 13 . 1 . Thermal 5 | . . . 5 . . . Explosive 33 | . 2 12 13 6 . . Electromagnetic 20 | 8 6 . 6 . . . Robot Hit Streak 12 | 4 6 5 12 1 . . Robot Miss Streak 5 | 2 3 1 5 3 1 . Penetration Max . | . . . . . . . Secondary Targets . | . . . . . . . Shots Hit Robots 41 | 5 5 7 22 2 . . Core Hits 40 | 2 6 12 13 6 1 . Critical Kills . | . . . . . . . Critical Parts Destroyed . | . . . . . . . Critical Strikes . | . . . . . . . Melee Attacks 16 | . . . 7 . 7 2 Impact 13 | . . . 4 . 7 2 Slashing . | . . . . . . . Piercing . | . . . . . . . Sneak Attacks . | . . . . . . . Combat Hostiles . | . . . . . . . Follow-up Attacks . | . . . . . . . Damage Inflicted 1984 | 112 206 456 649 474 87 . Guns 65 | 65 . . . . . . Cannons 254 | . 57 . 197 . . . Explosions 1609 | 47 149 456 397 474 86 . Melee . | . . . . . . . Ramming 1 | . . . . . 1 . Kinetic 83 | . . . 83 . . . Thermal 102 | 47 . . 55 . . . Explosive 1562 | . 149 456 397 474 86 . Electromagnetic 236 | 65 57 . 114 . . . Impact . | . . . . . . . Slashing . | . . . . . . . Piercing . | . . . . . . . Highest Corruption . | . . . . . . . Average Corruption . | . . . . . . . Corruption Purged . | . . . . . . . Corruption Blocked . | . . . . . . . Overload Shots . | . . . . . . . Overflow Damage 145 | 35 4 11 . 35 60 . Projectiles . | . . . . . . . Explosions 145 | 35 4 11 . 35 60 . Melee . | . . . . . . . Knockbacks 2 | . . . 2 . . . Impact . | . . . . . . . Kinetic 2 | . . . 2 . . . Secondary . | . . . . . . . Self-Inflicted Damage 195 | . . . 35 47 113 . Shots 3 | . . . 1 1 1 . Rammed 3 | . . . . . 2 1 Targets Rammed 3 | . . . . . 2 1 Kicked . | . . . . . . . Crushed . | . . . . . . . Highest Temperature 147 | 72 4 . 147 7 4 11 Average Temperature 38 | 38 4 . 46 4 2 11 Received Heat Transfer 441 | . . 27 186 . 108 120 Siege Activations . | . . . . . . . Robots Corrupted 1 | . . . 1 . . . Combat Hostiles 1 | . . . 1 . . . Parts Fried . | . . . . . . . Impact Corruptions . | . . . . . . . Robots Melted . | . . . . . . . Combat Hostiles . | . . . . . . . Parts Melted . | . . . . . . . Heat Transferred 235 | 50 . . 185 . . . Parts Sabotaged . | . . . . . . . Parts Stolen . | . . . . . . . Parts Stripped . | . . . . . . . Power Chain Reactions 1 | 1 . . . . . . Alert | -11 -10 -10 -9 -9 -8 -7 ------- Run | Yrd Mat Min Mat Min Mat Fac Peak Influence 421 | 5 180 279 421 341 295 233 Initial 133 | . 3 70 108 132 132 133 Average 169 | 1 49 136 301 232 180 147 Maximum Alert Level 2 | . . 1 2 1 1 1 Low Security (%) 66 | 100 100 70 20 3 88 88 Level 1 27 | . . 29 48 96 11 11 Level 2 5 | . . . 31 . . . Level 3 . | . . . . . . . Level 4 . | . . . . . . . Level 5 . | . . . . . . . High Security . | . . . . . . . Max Security . | . . . . . . . Squads Dispatched 8 | . . . 2 . 3 3 Investigation 2 | . . . 1 . 1 . Extermination 1 | . . . . . . 1 Reinforcement 5 | . . . 1 . 2 2 Assault . | . . . . . . . Garrison . | . . . . . . . Intercept . | . . . . . . . Searches Triggered . | . . . . . . . Construction Impeded . | . . . . . . . Haulers Reinforced . | . . . . . . . Active Scanning Responses . | . . . . . . . Cargo Convoy Interrupts . | . . . . . . . Stealth | -11 -10 -10 -9 -9 -8 -7 --------- Run | Yrd Mat Min Mat Min Mat Fac Distress Signals 2 | . . . 1 . 1 . Communications Jammed . | . . . . . . . Distress Signals . | . . . . . . . Times Spotted 67 | . 7 4 15 7 17 17 Peak Tracking Total 14 | . 3 4 7 4 13 14 Tactical Retreats 7 | . 1 . . . 2 4 Traps | -11 -10 -10 -9 -9 -8 -7 ------- Run | Yrd Mat Min Mat Min Mat Fac Traps Triggered 1 | . . . . . 1 . Indirectly . | . . . . . . . Trap Hack Attempts . | . . . . . . . Triggered . | . . . . . . . Disarmed 3 | . 3 . . . . . Reprogrammed . | . . . . . . . Reused . | . . . . . . . Traps Extracted . | . . . . . . . Installed . | . . . . . . . Triggered . | . . . . . . . Machines | -11 -10 -10 -9 -9 -8 -7 ---------- Run | Yrd Mat Min Mat Min Mat Fac Machines Disabled 9 | . . 3 3 1 2 . Max in Single Turn 2 | . . 2 1 1 1 . Machines Repaired . | . . . . . . . Machines Dismantled . | . . . . . . . Machines Sabotaged . | . . . . . . . Overloaded Fab Kills . | . . . . . . . Hacking | -11 -10 -10 -9 -9 -8 -7 --------- Run | Yrd Mat Min Mat Min Mat Fac Machines Accessed 8 | . 3 . 2 . 2 1 Terminals 6 | . 2 . 2 . 1 1 Fabricators . | . . . . . . . Repair Stations . | . . . . . . . Recycling Units 1 | . 1 . . . . . Scanalyzers 1 | . . . . . 1 . Garrison Access . | . . . . . . . Total Hacks 17 | . 8 . 6 . 2 1 Successful 12 | . 6 . 4 . 1 1 Failed 5 | . 2 . 2 . 1 . Catastrophic . | . . . . . . . Database Lockouts . | . . . . . . . Manual 3 | . 1 . . . 2 . Terminals 14 | . 6 . 6 . 1 1 Fabricators . | . . . . . . . Repair Stations . | . . . . . . . Recycling Units 2 | . 2 . . . . . Scanalyzers 1 | . . . . . 1 . Garrison Access . | . . . . . . . Terminal Hacks 10 | . 4 . 4 . 1 1 Alert Level 5 | . 1 . 2 . 1 1 Unreport Threat 1 | . . . 1 . . . Locate Traps 2 | . 1 . 1 . . . Disarm Traps 1 | . 1 . . . . . Reinforcement Status 1 | . 1 . . . . . Fabricator Hacks . | . . . . . . . Repair Station Hacks . | . . . . . . . Recycling Unit Hacks 1 | . 1 . . . . . Report Inventory 1 | . 1 . . . . . Scanalyzer . | . . . . . . . Garrison Access Hacks . | . . . . . . . Unauthorized Hacks 1 | . 1 . . . . . Terminals . | . . . . . . . Fabricators . | . . . . . . . Repair Stations . | . . . . . . . Recycling Units 1 | . 1 . . . . . Monitor 1 | . 1 . . . . . Scanalyzers . | . . . . . . . Garrison Access . | . . . . . . . Data Cores Recovered . | . . . . . . . Used . | . . . . . . . Hacking Detections 3 | . 2 . 1 . . . Full Trace Events 1 | . . . 1 . . . Feedback Events . | . . . . . . . Feedback Blocked . | . . . . . . . Robot Schematics Acquired . | . . . . . . . Robots Built . | . . . . . . . Authchips . | . . . . . . . Time . | . . . . . . . Total Robot Build Rating . | . . . . . . . Part Schematics Acquired . | . . . . . . . Parts Built . | . . . . . . . Authchips . | . . . . . . . Time . | . . . . . . . Total Part Build Rating . | . . . . . . . Parts Repaired . | . . . . . . . Time . | . . . . . . . Parts Recycled . | . . . . . . . Recycled Matter . | . . . . . . . Retrieved Matter . | . . . . . . . Retrieved Components . | . . . . . . . Parts Scanalyzed . | . . . . . . . Part Schematics Acquired . | . . . . . . . Parts Damaged . | . . . . . . . Bothacking | -11 -10 -10 -9 -9 -8 -7 ------------ Run | Yrd Mat Min Mat Min Mat Fac Used RIF Installer . | . . . . . . . Robots Hacked 1 | . . . 1 . . . Non-combat . | . . . . . . . Combat 1 | . . . 1 . . . Robot Hacks Applied 1 | . . . 1 . . . parse_system 1 | . . . 1 . . . Relay Couplers Released . | . . . . . . . Fabnet Peak Effective % . | . . . . . . . Robots Rewired . | . . . . . . . Allies Hacked . | . . . . . . . Hacks Repelled . | . . . . . . . Allies | -11 -10 -10 -9 -9 -8 -7 -------- Run | Yrd Mat Min Mat Min Mat Fac Total Allies 2 | . . . . 2 . . Largest Group 2 | . . . . 2 2 . Highest-Rated Group 49 | . . . . 49 49 . Highest-Rated Ally 31 | . . . . 31 31 . Total Orders . | . . . . . . . Ally Attacks 12 | . . . . . 12 . Total Damage 168 | . . . . . 168 . Kills 3 | . . . . . 3 . Allies Corrupted . | . . . . . . . Allies Melted . | . . . . . . . Intel | -11 -10 -10 -9 -9 -8 -7 ------- Run | Yrd Mat Min Mat Min Mat Fac Robot Analysis Total . | . . . . . . . Derelict Logs Recovered 1 | . . 1 . . . . Drone Launches . | . . . . . . . Drone Recoveries . | . . . . . . . Exploration | -11 -10 -10 -9 -9 -8 -7 ------------- Run | Yrd Mat Min Mat Min Mat Fac Turns Passed 1521 | 75 227 147 279 169 317 307 Spaces Moved 1850 | 42 250 302 349 103 472 332 Core 381 | 6 1 . . . 42 332 Treads . | . . . . . . . Legs 48 | 36 12 . . . . . Wheels . | . . . . . . . Hover . | . . . . . . . Flight 1421 | . 237 302 349 103 430 . Fastest Speed 31 | 50 37 37 31 31 31 50 Average Speed 39 | 110 42 37 33 31 33 50 Slowest Speed 200 | 120 200 37 34 31 117 50 Overloaded Moves . | . . . . . . . Propulsion Burnouts . | . . . . . . . Robots Hopped 1 | . . . 1 . . . Cave-ins Triggered . | . . . . . . . Exploration Rate (%) 29 | 5 35 56 28 32 41 11 Regions Visited 6 Branch Regions 2 Pre-discovered Areas . | . . . . . . . Known Exits Taken . | . . . . . . . Unknown Exits Taken 6 | 1 1 1 1 1 1 . Scrap Searched 2 | . . 1 . 1 . . Spaces Dug 6 | . . . 1 . 5 . Terrain Destroyed 289 | 3 15 72 123 42 34 . Melee 6 | . . . 1 . 5 . Projectile 6 | . . . 5 . 1 . AOE 277 | 3 15 72 117 42 28 . Terrain Rammed . | . . . . . . . Walls Destroyed . | . . . . . . . Machines Disabled . | . . . . . . . Actions | -11 -10 -10 -9 -9 -8 -7 --------- Run | Yrd Mat Min Mat Min Mat Fac Total 2544 | 62 367 324 463 233 624 471 Wait 486 | . 81 9 39 116 115 126 Move 1842 | 41 249 301 346 102 471 332 Hop 1 | . . . 1 . . . Pick Up 35 | 10 7 . 7 2 7 2 Fast Attach 10 | . 3 1 4 1 . 1 Attach 36 | 6 5 . 8 3 10 4 Detach 16 | . 4 . 5 . 5 2 Swap 5 | 1 1 . 1 1 1 . Drop 25 | . 9 1 7 2 5 1 Fire 68 | 4 8 12 37 6 1 . Melee 16 | . . . 7 . 7 2 Ram 3 | . . . . . 2 1 Kick . | . . . . . . . Crush . | . . . . . . . Escape Stasis . | . . . . . . . Rewire . | . . . . . . . Trap . | . . . . . . . Miscellaneous 1 | . . . 1 . . . Route ------- -11/Scrapyard -10/Materials -10/Mines -9/Materials -9/Mines -8/Materials (discovered 2 exits: *Fac / Sto) -7/Factory History --------- Turn | Location | Event 3 | -11/Scrapyard | Discovered new exit (range 15) 76 | -11/Scrapyard | Entered Materials 288 | -10/Materials | Discovered new exit (range 15) 303 | -10/Materials | Entered Mines 322 | -10/Mines | Build established: Mutant 343 | -10/Mines | Received a Rocket Launcher from a helpful Derelict 447 | -10/Mines | Discovered new exit (range 7) 450 | -10/Mines | Entered Materials 450 | -9/Materials | Evolved 2 slots: Propulsion x2 692 | -9/Materials | Discovered new exit (range 16) 714 | -9/Materials | Core integrity fell below 50% 729 | -9/Materials | Entered Mines 763 | -9/Mines | Found a damaged Exp. Sensor Array with a note attached 764 | -9/Mines | Found Prototype Device 764 | -9/Mines | Identified Exp. Sensor Array 825 | -9/Mines | Found DCF Scrap (14 items) 863 | -9/Mines | Discovered new exit (range 11) 898 | -9/Mines | Entered Materials 898 | -8/Materials | Accompanied by 2 allies 898 | -8/Materials | Evolved 2 slots: Utility x2 899 | -8/Materials | Identified exit to Storage 903 | -8/Materials | Led the pair of lost Derelicts to an unsafe place 1213 | -8/Materials | Discovered new exit (range 6) 1215 | -8/Materials | Entered Factory 1215 | -7/Factory | Evolved 2 slots: Utility x2 1225 | -7/Factory | Lost 6 parts (1p4n1u) 1490 | -7/Factory | Core integrity fell below 50% 1519 | -7/Factory | Core integrity fell below 20% 1522 | -7/Factory | Destroyed by S-27 Virus with Autogun Last Messages --------------- dispatching Specialist reinforcements to area. ALERT: All DSF locations entering lockdown mode. Machine Analyzer destroyed. Knocked back. C-17 Slicer destroyed. C-17 Slicer knocked back. C-17 Slicer destroyed. Terrain Scanner destroyed. Exp. Sensor Array severed. Flail severed. Hacking Suite severed. ALERT: Rogue bot located, Programmers report to Factory Zone 7I. Penetrated by Slug. Adv. Terrain Scan Processor severed. Penetrated by Slug. Slug penetrates Wall. Critical hit (Burn: +37). T-07 Excavator destroyed. Slammed into S-27 Virus. Map ----- +----------------------------------------------------+ | ????# ???????????????????????????????????????? | | ????# ???????????????????????????????????????? | | ????# #?????#+#??????????????????????????????? | | ????# #?????# #??????????????????????????????? | | ????# #?????# #??????????????????????????????? | | ????# #?????# #??????????????????????????????? | | ??### ###???# #??????????????????????????????? | | ??# ##### #############??????????????????? | | ### #??????????????????? | | #??????????????????? | | #??????????????????? | | +??????????????????? | | #??????????????????? | | #??????????????????? | | ### #??????????????????? | | ## ############u ##??????????????????? | | ######+#######????????# #???????????????????? | | # #????????# #???????????????????? | | + """" #????????# #???????????????????? | | # ""R"" #????????# #???????????????????? | | # "" "" #????????# #???????????????????? | | # #????????# #???????????????????? | | # #????????# = #???????????????????? | | # #????????#s !%|#???????????????????? | | # #????????# c * #???????????????????? | | # """"" #????????+ @ #???????????????????? | | # """"" #????????#sss #???????????????????? | | ## """ #????????# #???????????????????? | | ?# #????????# #???????????????????? | | ?##############????????# #???????????????????? | | ???????????????????????# #???????????????????? | | ???????????????????????# #???????????????????? | | ???????????????????????# +???????????????????? | | ????????????""""?"""???# #???????????????????? | | ????????????""""?"""???# #???????????????????? | | ????????????""""?"""???# #???????????????????? | | #####???????""""???????# #???????????????????? | | #??????????????????# #???????????????????? | | """ #???????""""???????? #???????????????????? | | #???????""""????""?? #???????????????????? | | """ #???????""""????Y"?? ?????????????????????? | | #???????""""????""???????????????????????????? | | #####????????????????????????????????????????????? | | ?????????????????????????????????????????????????? | | ?????????????????????????????????????????????????? | | ?????????????????????????????????????????????????? | | ?????????????????????????????????????????????????? | | ?????????????????????????????????????????????????? | | ?????????????????????????????????????????????????? | | ?????????????????????????????????????????????????? | +----------------------------------------------------+ Best States ------------- Heat Dissipation 38 Energy Generation 14 Energy Capacity 160 Matter Stores 300 Matter Capacity 300 Sight Range 16 Robot Scan Range 20 Terrain Scan Range 14 Terrain Scan Density 210 Armor Coverage 150 Propulsion Shielding 33 Evasion (%) 63 Offensive Hacking 10 Item Schematics ----------------- None Robot Schematics ------------------ None Fabricated ------------ Nothing Alien Tech Used ----------------- None Achievements -------------- Remodeling True Hacker Challenges ------------ None Game ------ Seed ProcessingCryofiberSource Manual? 0 Play Time 00:38:58 Cumulative 8.9 hours Start 2025.01.13 @ 13:25:08 End 2025.01.13 @ 14:00:46 Sessions 1 Manual Loads 0 Difficulty Rogue Special Mode None Game No. 9 Rogue 9 Adventurer 0 Explorer 0 Win Type - Total 0 Types 0/0/0/0/0/0/0/0/0 Lore% 12 Gallery% 13 Achievement% 14 Wizard Run 0 Options --------- Layout 1 ASCII 0 Keyboard 0 Movement Mouse Keybinds 0 Fullscreen 1 Font 24/Smallcaps Map View 50x35 Zoom Use 0% Tactical HUD 0 Map Filters NONE Filters NONE Steam 1 RUN: 7ce0cda4-e344-4b6b-b551-a33f0250e1df